fUSD/lending_fUSD_20240825
["ID","MTS","AMOUNT","RATE_DAILY","PERIOD"]
[335909215,1724581863302,-638.32,0.00010999,2]
[335909216,1724581863312,-638.32,0.00010999,2]
[335909217,1724581863323,-638.42951124,0.00010999,2]
[335909218,1724581863333,-500.0,0.00010999,2]
[335909219,1724581863342,-500.0,0.00010999,2]
[335909220,1724581863352,-500.0,0.00010999,2]
[335909221,1724581863362,-500.0,0.00010999,2]
[335909222,1724581863371,-500.0,0.00010999,2]
[335909223,1724581863381,-500.0,0.00010999,2]
[335909224,1724581863390,-500.0,0.00010999,2]
[335909225,1724581863400,-500.0,0.00010999,2]
[335909226,1724581863409,-500.0,0.00010999,2]
[335909227,1724581863420,-500.0,0.00010999,2]
[335909228,1724581863429,-500.0,0.00010999,2]
[335909229,1724581863442,-500.0,0.00010999,2]
[335909230,1724581863453,-500.0,0.00010999,2]
[335909231,1724581863463,-500.0,0.00010999,2]
[335909232,1724581863473,-252.3,0.00010999,2]
[335909233,1724581863483,-1142.48,0.00010999,2]
[335909234,1724581863492,-1142.48,0.00010999,2]
[335909235,1724581863503,-1142.48,0.00010999,2]
[335909236,1724581863514,-1142.48,0.00010999,2]
[335909237,1724581863524,-1142.48,0.00010999,2]
[335909238,1724581863534,-1142.48,0.00010999,2]
[335909239,1724581863544,-1142.48,0.00010999,2]
[335909240,1724581863554,-1142.48,0.00010999,2]
[335909241,1724581863563,-1142.48,0.00010999,2]
[335909242,1724581863574,-1142.5342,0.00010999,2]
[335909243,1724581863584,-730.2,0.00010999,2]
[335909244,1724581863594,-730.2,0.00010999,2]
[335909245,1724581863605,-500.0,0.00010999,2]
[335909246,1724581863616,-730.2,0.00010999,2]
[335909247,1724581863626,-332.14,0.00010999,2]
[335909248,1724581863636,-730.2,0.00010999,2]
[335909249,1724581863646,-730.2,0.00010999,2]
[335909250,1724581863656,-730.2,0.00010999,2]
[335909251,1724581863666,-730.2,0.00010999,2]
[335909252,1724581863676,-730.2,0.00010999,2]
[335909253,1724581863686,-730.2,0.00010999,2]
[335909254,1724581863695,-730.2,0.00010999,2]
[335909255,1724581863706,-730.2,0.00010999,2]
[335909256,1724581863717,-730.23959296,0.00010999,2]
[335909257,1724581863727,-1403.1,0.00010999,2]
[335909258,1724581863737,-1403.1,0.00010999,2]
[335909259,1724581863748,-1403.1,0.00010999,2]
[335909260,1724581863758,-1403.1,0.00010999,2]
[335909261,1724581863768,-1403.1,0.00010999,2]
[335909262,1724581863779,-1403.1,0.00010999,2]
[335909263,1724581863788,-1403.32,0.00010999,2]
[335909264,1724581863798,-500.0,0.00010999,2]
[335909265,1724581863808,-500.0,0.00010999,2]
[335909266,1724581863819,-500.0,0.00010999,2]
[335909267,1724581863828,-500.0,0.00010999,2]
[335909268,1724581863838,-364.169999,0.00010999,2]
[335909269,1724581863848,-17039.77,0.00010999,2]
[335909270,1724581863858,-17039.77,0.00010999,2]
[335909271,1724581863868,-17039.77,0.00010999,2]
[335909272,1724581863878,-17039.77,0.00010999,2]
[335909273,1724581863888,-17039.77,0.00010999,2]
[335909274,1724581863901,-17039.77,0.00010999,2]
[335909275,1724581863911,-17039.85990468,0.00010999,2]
[335909276,1724581863922,-500.0,0.00010999,2]
[335909277,1724581863933,-500.0,0.00010999,2]
[335909278,1724581863943,-500.0,0.00010999,2]
[335909279,1724581863953,-500.0,0.00010999,2]
[335909280,1724581863963,-500.0,0.00010999,2]
[335909281,1724581863974,-500.0,0.00010999,2]
[335909282,1724581863984,-500.0,0.00010999,2]
[335909283,1724581863994,-500.0,0.00010999,2]
[335909284,1724581864004,-518.93,0.00010999,2]
[335909285,1724581864014,-500.0,0.00010999,2]
[335909286,1724581864024,-500.0,0.00010999,2]
[335909287,1724581864034,-638.13,0.00010999,2]
[335909288,1724581864044,-526.25,0.00010999,2]
[335909289,1724581864054,-696.5,0.00010999,2]
[335909290,1724581864063,-526.25,0.00010999,2]
[335909291,1724581864073,-696.5,0.00010999,2]
[335909292,1724581864082,-526.25,0.00010999,2]
[335909293,1724581864092,-696.5,0.00010999,2]
[335909294,1724581864101,-526.25,0.00010999,2]
[335909295,1724581864111,-696.5,0.00010999,2]
[335909296,1724581864121,-526.25,0.00010999,2]
[335909297,1724581864130,-696.5,0.00010999,2]
[335909298,1724581864140,-526.25,0.00010999,2]
[335909299,1724581864150,-500.0,0.00010999,2]
[335909300,1724581864160,-696.5,0.00010999,2]
[335909301,1724581864170,-696.58,0.00010999,2]
[335909302,1724581864180,-500.0,0.00010999,2]
[335909303,1724581864190,-526.25,0.00010999,2]
[335909304,1724581864200,-500.0,0.00010999,2]
[335909305,1724581864210,-526.25,0.00010999,2]
[335909306,1724581864220,-415.02661468,0.00010999,2]
[335909307,1724581864229,-526.25,0.00010999,2]
[335909308,1724581864240,-526.29,0.00010999,2]
[335909309,1724581864249,-666.53,0.00010999,2]
[335909310,1724581864259,-666.53,0.00010999,2]
[335909311,1724581864270,-666.53,0.00010999,2]
[335909312,1724581864280,-666.53,0.00010999,2]
[335909313,1724581864290,-666.53,0.00010999,2]
[335909314,1724581864299,-666.53,0.00010999,2]
[335909315,1724581864310,-666.53,0.00010999,2]
[335909316,1724581864320,-666.53,0.00010999,2]
[335909317,1724581864331,-666.53,0.00010999,2]
[335909318,1724581864341,-666.53,0.00010999,2]
[335909319,1724581864352,-666.53,0.00010999,2]
[335909320,1724581864362,-666.53,0.00010999,2]
[335909321,1724581864372,-666.53,0.00010999,2]
[335909322,1724581864381,-666.53,0.00010999,2]
[335909323,1724581864391,-666.56596198,0.00010999,2]
[335909324,1724581864401,-500.0,0.00010999,2]
[335909325,1724581864411,-500.0,0.00010999,2]
[335909326,1724581864421,-500.0,0.00010999,2]
[335909327,1724581864431,-500.0,0.00010999,2]
[335909328,1724581864443,-500.0,0.00010999,2]
[335909329,1724581864455,-500.0,0.00010999,2]
[335909330,1724581864465,-500.0,0.00010999,2]
[335909331,1724581864475,-500.0,0.00010999,2]
[335909332,1724581864486,-500.0,0.00010999,2]
[335909333,1724581864496,-500.0,0.00010999,2]
[335909334,1724581864505,-500.0,0.00010999,2]
[335909335,1724581864515,-154.69469028,0.00010999,2]
[335909336,1724581864526,-151.0,0.00010999,2]
[335909337,1724581864537,-1367.33,0.00010999,2]
[335909338,1724581864546,-151.0,0.00010999,2]
[335909339,1724581864556,-1367.33,0.00010999,2]
[335909340,1724581864566,-1367.33,0.00010999,2]
[335909341,1724581864576,-1367.33,0.00010999,2]
[335909342,1724581864587,-1367.33,0.00010999,2]
[335909343,1724581864596,-1367.33,0.00010999,2]
[335909344,1724581864606,-1367.33,0.00010999,2]
[335909345,1724581864616,-1367.33,0.00010999,2]
[335909346,1724581864626,-1367.33,0.00010999,2]
[335909347,1724581864636,-1367.33,0.00010999,2]
[335909348,1724581864646,-1367.33,0.00010999,2]
[335909349,1724581864656,-1367.33,0.00010999,2]
[335909350,1724581864666,-1367.33,0.00010999,2]
[335909351,1724581864675,-1367.33,0.00010999,2]
[335909352,1724581864685,-529.43,0.00010999,2]
[335909353,1724581864695,-529.43,0.00010999,2]
[335909354,1724581864704,-1367.52952044,0.00010999,2]
[335909355,1724581864714,-529.43,0.00010999,2]
[335909356,1724581864724,-529.43,0.00010999,2]
[335909357,1724581864733,-529.43,0.00010999,2]
[335909358,1724581864743,-529.43,0.00010999,2]
[335909359,1724581864752,-529.43,0.00010999,2]
[335909360,1724581864762,-529.43,0.00010999,2]
[335909361,1724581864772,-529.43,0.00010999,2]
[335909362,1724581864783,-529.43,0.00010999,2]
[335909363,1724581864792,-529.43,0.00010999,2]
[335909364,1724581864802,-484.93820646,0.00010999,2]
[335909365,1724581864812,-529.59,0.00010999,2]
[335909366,1724581864822,-500.0,0.00010999,2]
[335909367,1724581864832,-500.0,0.00010999,2]
[335909368,1724581864841,-500.0,0.00010999,2]
[335909369,1724581864851,-500.0,0.00010999,2]
[335909370,1724581864860,-500.0,0.00010999,2]
[335909371,1724581864870,-500.0,0.00010999,2]
[335909372,1724581864880,-500.0,0.00010999,2]
[335909373,1724581864890,-465.87867972,0.00010999,2]
[335909374,1724581864899,-500.0,0.00010999,2]
[335909375,1724581864909,-500.0,0.00010999,2]
[335909376,1724581864918,-500.0,0.00010999,2]
[335909377,1724581864928,-500.0,0.00010999,2]
[335909378,1724581864937,-456.68866685,0.00010999,2]
[335909379,1724581864947,-714.59,0.00010999,2]
[335909380,1724581864956,-714.59,0.00010999,2]
[335909381,1724581864966,-714.59,0.00010999,2]
[335909382,1724581864976,-714.59,0.00010999,2]
[335909383,1724581864986,-714.59,0.00010999,2]
[335909384,1724581864995,-576.27,0.00010999,2]
[335909385,1724581865005,-714.59,0.00010999,2]
[335909386,1724581865015,-576.27,0.00010999,2]
[335909387,1724581865024,-714.59,0.00010999,2]
[335909388,1724581865034,-576.27,0.00010999,2]
[335909389,1724581865043,-714.59,0.00010999,2]
[335909390,1724581865053,-576.27,0.00010999,2]
[335909391,1724581865063,-714.59,0.00010999,2]
[335909392,1724581865073,-576.27,0.00010999,2]
[335909393,1724581865082,-576.27,0.00010999,2]
[335909394,1724581865092,-714.59,0.00010999,2]
[335909395,1724581865102,-576.27,0.00010999,2]
[335909396,1724581865111,-714.59,0.00010999,2]
[335909397,1724581865120,-576.27,0.00010999,2]
[335909398,1724581865129,-714.71662835,0.00010999,2]
[335909399,1724581865139,-557.88,0.00010999,2]
[335909400,1724581865150,-576.27,0.00010999,2]
[335909401,1724581865159,-557.88,0.00010999,2]
[335909402,1724581865169,-576.27,0.00010999,2]
[335909403,1724581865179,-557.88,0.00010999,2]
[335909404,1724581865188,-576.27,0.00010999,2]
[335909405,1724581865198,-557.88,0.00010999,2]
[335909406,1724581865208,-576.27,0.00010999,2]
[335909407,1724581865216,-557.88,0.00010999,2]
[335909408,1724581865226,-576.27,0.00010999,2]
[335909409,1724581865235,-576.27,0.00010999,2]
[335909410,1724581865245,-557.88,0.00010999,2]
[335909411,1724581865255,-576.38024305,0.00010999,2]
[335909412,1724581865264,-557.88,0.00010999,2]
[335909413,1724581865275,-557.88,0.00010999,2]
[335909414,1724581865285,-557.88,0.00010999,2]
[335909415,1724581865296,-557.88,0.00010999,2]
[335909416,1724581865306,-557.88,0.00010999,2]
[335909417,1724581865315,-557.9424134,0.00010999,2]
[335909418,1724581865325,-587.37,0.00010999,2]
[335909419,1724581865334,-587.37,0.00010999,2]
[335909420,1724581865344,-587.37,0.00010999,2]
[335909421,1724581865354,-587.37,0.00010999,2]
[335909422,1724581865363,-587.37,0.00010999,2]
[335909423,1724581865372,-587.44518328,0.00010999,2]
[335909424,1724581865383,-780.7,0.00010999,2]
[335909425,1724581865392,-780.7,0.00010999,2]
[335909426,1724581865401,-780.7,0.00010999,2]
[335909427,1724581865411,-780.7,0.00010999,2]
[335909428,1724581865420,-780.7,0.00010999,2]
[335909429,1724581865430,-780.7,0.00010999,2]
[335909430,1724581865443,-780.82,0.00010999,2]
[335909431,1724581865453,-500.0,0.00010999,2]
[335909432,1724581865463,-500.0,0.00010999,2]
[335909433,1724581865473,-500.0,0.00010999,2]
[335909434,1724581865482,-500.0,0.00010999,2]
[335909435,1724581865493,-224.2,0.00010999,2]
[335909436,1724581865502,-633.89,0.00010999,2]
[335909437,1724581865512,-633.89,0.00010999,2]
[335909438,1724581865524,-633.89,0.00010999,2]
[335909439,1724581865533,-633.89,0.00010999,2]
[335909440,1724581865543,-8253.99,0.00010999,2]
[335909441,1724581865553,-633.89,0.00010999,2]
[335909442,1724581865563,-8253.99,0.00010999,2]
[335909443,1724581865573,-500.0,0.00010999,2]
[335909444,1724581865582,-633.89,0.00010999,2]
[335909445,1724581865592,-569.93,0.00010999,2]
[335909446,1724581865601,-8253.99,0.00010999,2]
[335909447,1724581865611,-500.0,0.00010999,2]
[335909448,1724581865620,-633.89,0.00010999,2]
[335909449,1724581865629,-569.93,0.00010999,2]
[335909450,1724581865639,-8253.99,0.00010999,2]
[335909451,1724581865649,-417.7,0.00010999,2]
[335909452,1724581865658,-633.89,0.00010999,2]
[335909453,1724581865668,-569.93,0.00010999,2]
[335909454,1724581865677,-8253.99,0.00010999,2]
[335909455,1724581865687,-633.89,0.00010999,2]
[335909456,1724581865697,-569.93,0.00010999,2]
[335909457,1724581865707,-8253.99,0.00010999,2]
[335909458,1724581865717,-569.93,0.00010999,2]
[335909459,1724581865727,-8254.14798424,0.00010999,2]
[335909460,1724581865736,-633.89,0.00010999,2]
[335909461,1724581865746,-569.93,0.00010999,2]
[335909462,1724581865756,-633.89,0.00010999,2]
[335909463,1724581865766,-569.93,0.00010999,2]
[335909464,1724581865775,-633.89,0.00010999,2]
[335909465,1724581865785,-569.93,0.00010999,2]
[335909466,1724581865795,-633.89,0.00010999,2]
[335909467,1724581865805,-569.93,0.00010999,2]
[335909468,1724581865815,-633.89,0.00010999,2]
[335909469,1724581865824,-570.04,0.00010999,2]
[335909470,1724581865834,-633.94497911,0.00010999,2]
[335909471,1724581865844,-592.96,0.00010999,2]
[335909472,1724581865853,-12100.73,0.00010999,2]
[335909473,1724581865864,-592.96,0.00010999,2]
[335909474,1724581865873,-12100.73,0.00010999,2]
[335909475,1724581865882,-592.96,0.00010999,2]
[335909476,1724581865892,-12100.73,0.00010999,2]
[335909477,1724581865901,-592.96,0.00010999,2]
[335909478,1724581865910,-12100.73,0.00010999,2]
[335909479,1724581865920,-592.96,0.00010999,2]
[335909480,1724581865929,-12100.73,0.00010999,2]
[335909481,1724581865939,-592.96,0.00010999,2]
[335909482,1724581865948,-592.98,0.00010999,2]
[335909483,1724581865958,-12100.73,0.00010999,2]
[335909484,1724581865967,-12100.73,0.00010999,2]
[335909485,1724581865977,-12100.73,0.00010999,2]
[335909486,1724581865986,-12100.73,0.00010999,2]
[335909487,1724581865996,-12100.73,0.00010999,2]
[335909488,1724581866005,-12100.73,0.00010999,2]
[335909489,1724581866015,-12100.73,0.00010999,2]
[335909490,1724581866024,-12100.73,0.00010999,2]
[335909491,1724581866033,-12100.73,0.00010999,2]
[335909492,1724581866042,-12100.92636122,0.00010999,2]
[335909493,1724581866051,-234364.08939337,0.00011,2]
[335909494,1724581866061,-150.0,0.00011,2]
[335909495,1724581866070,-500.0,0.00011,2]
[335909496,1724581866079,-500.0,0.00011,2]
[335909497,1724581866089,-500.0,0.00011,2]
[335909498,1724581866099,-500.0,0.00011,2]
[335909499,1724581866108,-500.0,0.00011,2]
[335909500,1724581866117,-500.0,0.00011,2]
[335909501,1724581866126,-500.0,0.00011,2]
[335909502,1724581866136,-500.0,0.00011,2]
[335909503,1724581866145,-500.0,0.00011,2]
[335909504,1724581866163,-500.0,0.00011,2]
[335909505,1724581866172,-500.0,0.00011,2]
[335909506,1724581866181,-500.0,0.00011,2]
[335909507,1724581866191,-500.0,0.00011,2]
[335909508,1724581866341,-500.0,0.00011,2]
[335909509,1724581866353,-500.0,0.00011,2]
[335909510,1724581866364,-500.0,0.00011,2]
[335909511,1724581866374,-500.0,0.00011,2]
[335909512,1724581866384,-500.0,0.00011,2]
[335909513,1724581866394,-3182.31941419,0.00011,2]
[335909514,1724581866409,-500.0,0.00011,2]
[335909515,1724581866418,-500.0,0.00011,5]
[335909516,1724581866428,-500.0,0.00011,2]
[335909517,1724581866439,-500.0,0.00011,2]
[335909518,1724581866452,-500.0,0.00011,2]
[335909519,1724581866461,-500.0,0.00011,2]
[335909520,1724581866471,-500.0,0.00011,2]
[335909521,1724581866480,-500.0,0.00011,2]
[335909522,1724581866490,-2816994.37518299,0.00011,2]
[335909523,1724581866500,-501.0,0.00011,2]
[335909524,1724581866509,-1456266.22084607,0.00011,2]
[335909525,1724581866716,-66415.4347615,0.00011,2]
[335909526,1724581866729,-191375.39769062,0.00011,2]
[335909527,1724581866741,-338.805,0.00011,2]
[335909528,1724581866752,-380.42693498,0.00011,2]
[335909529,1724581866765,-588.209208,0.00011,2]
[335909530,1724581866805,-270.59,0.00011,2]
[335909531,1724581866817,-1279.32942339,0.00011,2]
[335909532,1724581866828,-639.7496,0.00011,2]
[335909533,1724581866839,-1358.27907488,0.00011,2]
[335909534,1724581866856,-1264.39,0.00010997,2]
[335909535,1724581866866,-6387.52581175,0.00011,2]
[335909536,1724581866881,-615.77527317,0.00011,2]
[335909537,1724581866892,-1091.24163736,0.00011,2]
[335909538,1724581866906,-17963.82189606,0.00011,2]
[335909539,1724581866916,-8405.759899,0.00011,2]
[335909540,1724581866927,-9837.1995,0.00011,2]
[335909541,1724581866939,-890.90712876,0.00011,2]
[335909542,1724581867124,-204.11767266,0.00010899,2]
[335909543,1724581867133,-676.68232734,0.00010997,2]
[335909544,1724581867146,-587.70767266,0.00010997,2]
[335909545,1724581867155,-1264.39,0.00010997,2]
[335909546,1724581867166,-1264.39,0.00010998,2]
[335909547,1724581867175,-1264.39,0.00010998,2]
[335909548,1724581867184,-1264.39,0.00010998,2]
[335909549,1724581867193,-1264.39,0.00010999,2]
[335909550,1724581867201,-1264.39,0.00010999,2]
[335909551,1724581867211,-1264.39,0.00010999,2]
[335909552,1724581867221,-1222.66646778,0.00010999,2]
[335909553,1724581867233,-41.72353222,0.00010999,2]
[335909554,1724581867243,-458.27646778,0.00011,2]
[335909555,1724581867256,-572.21,0.00011,2]
[335909556,1724581867271,-23489.6,0.00011,2]
[335909557,1724581867328,-500.0,0.00011,2]
[335909558,1724581867339,-942.66174752,0.00011,2]
[335909559,1724581867351,-801.46196804,0.00011,2]
[335909560,1724581867362,-537.16417105,0.00011,2]
[335909561,1724581867409,-305.17413868,0.00011,2]
[335909562,1724581867420,-938.72103182,0.00011,2]
[335909563,1724581867436,-1264.39,0.00010999,2]
[335909564,1724581867448,-20213.87893305,0.00011,2]
[335909565,1724581867458,-3224.73762716,0.00011,2]
[335909566,1724581867469,-1233.86,0.00011,2]
[335909567,1724581867480,-2759.5004898,0.00011,2]
[335909568,1724581867493,-3484.0,0.00011,2]
[335909569,1724581867503,-337.27249606,0.00011,2]
[335909570,1724581867519,-263.95605343,0.00011,2]
[335909571,1724581867531,-300.0,0.00011,2]
[335909572,1724581867543,-11209.15747998,0.00011,2]
[335909573,1724581867726,-1264.39,0.00010999,2]
[335909574,1724581867736,-1264.53,0.00010999,2]
[335909575,1724581867746,-16158.98820847,0.00011,2]
[335909576,1724581867757,-515.83635347,0.00011,2]
[335909577,1724581867768,-495.28749195,0.00011,2]
[335909578,1724581867779,-670.56,0.00011,2]
[335909579,1724581867790,-300.0,0.00011,2]
[335909580,1724581867801,-451.23409272,0.00011,2]
[335909581,1724581867812,-400.57,0.00011,2]
[335909582,1724581867827,-4717.28541024,0.00011,2]
[335909583,1724581867837,-4420.04802183,0.00011,2]
[335909584,1724581867848,-584.82021014,0.00011,2]
[335909585,1724581867860,-585.22668101,0.00011,2]
[335909586,1724581867871,-1346.51356479,0.00011,2]
[335909587,1724581867882,-11254.07431018,0.00011,2]
[335909588,1724581867893,-26977.16239601,0.00011,2]
[335909589,1724581867905,-456.95008335,0.00011,2]
[335909590,1724581867916,-27493.91517875,0.00011,2]
[335909591,1724581867927,-852.18109769,0.00011,2]
[335909592,1724581867941,-343.68665496,0.00011,2]
[335909593,1724581867952,-3075.0,0.00011,2]
[335909594,1724581867963,-2285.84891763,0.00011,2]
[335909595,1724581868589,155.0,0.0001,2]
[335909599,1724581998437,909.47,0.00024657,120]
[335909600,1724581998738,909.47,0.00025342,120]
[335909601,1724581999053,909.47,0.00026027,120]
[335909602,1724581999318,909.47,0.00026712,120]
[335909603,1724581999741,500.0,0.00024932,120]
[335909604,1724582010286,200.0,0.0002598,120]
[335909606,1724582052743,531.01,0.0001,2]
[335909609,1724582321974,307.73,8.219e-05,2]
[335909610,1724582349344,156.46,9.979e-05,2]
[335909611,1724582600225,500.0,0.00024932,120]
[335909612,1724582600339,757.9,0.00024657,120]
[335909613,1724582600632,757.9,0.00025342,120]
[335909614,1724582600890,757.9,0.00026027,120]
[335909615,1724582601151,757.9,0.00026712,120]
[335909616,1724582689374,1050.0,0.0001,2]
[335909617,1724582729375,155.0,9.999e-05,2]
[335909619,1724582841271,439.56904759,9.999e-05,2]
[335909620,1724582842524,303.05,8.219e-05,2]
[335909621,1724582860391,171.41953258,9.999e-05,2]
[335909622,1724582879749,357.91024172,9.962e-05,2]
[335909623,1724582905898,7058.0385027,9.999e-05,2]
[335909625,1724582954285,337.42,9.951e-05,2]
[335909635,1724582984676,250.0,9.934e-05,2]
[335909636,1724582999417,155.0,9.999e-05,2]
[335909646,1724583031785,-156.4272345,0.00010009,2]
[335909647,1724583031795,-1000.0,0.00010019,2]
[335909648,1724583031808,-155.0,0.00010026,2]
[335909649,1724583031818,-74.5727655,0.00010097,2]
[335909650,1724583031829,-80.65730878,0.00010097,2]
[335909651,1724583031839,-397.93665455,0.00010097,2]
[335909652,1724583031852,-28.71192313,0.00010097,2]
[335909653,1724583031862,-305.00194793,0.00010097,2]
[335909654,1724583031874,-150.0,0.00010466,2]
[335909655,1724583031886,-303.05,0.00010473,2]
[335909656,1724583031896,-80.71405463,0.00010501,2]
[335909657,1724583031952,-393.3952172,0.00010501,2]
[335909658,1724583031964,-320.89072817,0.00010501,2]
[335909659,1724583031976,-527.19740296,0.00010505,2]
[335909660,1724583031986,-2214.2168227,0.00010566,2]
[335909661,1724583031995,-155.0,0.00010699,2]
[335909662,1724583032004,-557.80103736,0.00010799,2]
[335909663,1724583032014,-2344.5834189,0.00010852,2]
[335909664,1724583032023,-304.22998605,0.00010852,2]
[335909665,1724583032032,-166.39780491,0.00010888,2]
[335909666,1724583032041,-11746.70365617,0.0001089,2]
[335909667,1724583032051,-1057.40134,0.0001089,2]
[335909668,1724583032060,-211.03413449,0.0001089,2]
[335909669,1724583032070,-1478.14,0.00010899,2]
[335909670,1724583032079,-153.08825451,0.00010899,2]
[335909671,1724583032090,-155.0,0.00010899,2]
[335909672,1724583032100,-153.08825449,0.00010899,2]
[335909673,1724583032109,-153.08825449,0.000109,2]
[335909674,1724583032120,-152.67384192,0.000109,2]
[335909676,1724583032129,-153.08825449,0.000109,2]
[335909677,1724583032138,-174.68941142,0.000109,2]
[335909679,1724583032147,-378.19791124,0.000109,2]
[335909681,1724583032157,-500.0,0.00010911,2]
[335909683,1724583032166,-200.0,0.00010959,2]
[335909686,1724583032176,-156.3,0.00010959,2]
[335909688,1724583032187,-150.0,0.00010979,2]
[335909690,1724583032196,-500.0,0.00010984,2]
[335909691,1724583032206,-16438.31210711,0.00010985,2]
[335909693,1724583032215,-624.7,0.00010986,2]
[335909695,1724583032224,-500.0,0.00010986,2]
[335909697,1724583032234,-624.7,0.00010988,2]
[335909699,1724583032243,-500.0,0.00010988,2]
[335909701,1724583032252,-292.96,0.00010989,2]
[335909703,1724583032262,-165.41,0.0001099,2]
[335909705,1724583032271,-165.41,0.0001099,2]
[335909707,1724583032280,-165.41,0.0001099,2]
[335909709,1724583032289,-165.41,0.0001099,2]
[335909711,1724583032298,-165.41,0.0001099,2]
[335909712,1724583032307,-165.41,0.0001099,2]
[335909713,1724583032317,-165.41,0.0001099,2]
[335909714,1724583032326,-165.41,0.0001099,2]
[335909715,1724583032335,-165.41,0.0001099,2]
[335909716,1724583032345,-165.41,0.0001099,2]
[335909717,1724583032354,-165.41,0.0001099,2]
[335909718,1724583032363,-165.41,0.0001099,2]
[335909719,1724583032374,-165.41,0.0001099,2]
[335909720,1724583032383,-165.41,0.0001099,2]
[335909721,1724583032392,-165.41,0.0001099,2]
[335909722,1724583032401,-165.41,0.0001099,2]
[335909723,1724583032411,-165.41,0.0001099,2]
[335909724,1724583032420,-165.41,0.0001099,2]
[335909725,1724583032429,-165.41,0.0001099,2]
[335909726,1724583032438,-165.41,0.0001099,2]
[335909727,1724583032448,-165.41,0.0001099,2]
[335909728,1724583032457,-165.41,0.0001099,2]
[335909729,1724583032466,-165.41,0.0001099,2]
[335909730,1724583032476,-165.41,0.0001099,2]
[335909731,1724583032485,-165.41,0.0001099,2]
[335909732,1724583032496,-165.41,0.0001099,2]
[335909733,1724583032506,-165.41,0.0001099,2]
[335909734,1724583032516,-165.41,0.0001099,2]
[335909735,1724583032526,-165.41,0.0001099,2]
[335909736,1724583032535,-165.41,0.0001099,2]
[335909737,1724583032545,-165.41,0.0001099,2]
[335909738,1724583032555,-165.41,0.0001099,2]
[335909739,1724583032564,-165.41,0.0001099,2]
[335909740,1724583032574,-165.41,0.0001099,2]
[335909741,1724583032584,-165.41,0.0001099,2]
[335909742,1724583032595,-165.41,0.0001099,2]
[335909743,1724583032606,-165.41,0.0001099,2]
[335909744,1724583032616,-165.41,0.0001099,2]
[335909745,1724583032625,-165.41,0.0001099,2]
[335909746,1724583032634,-8500.0,0.0001099,2]
[335909747,1724583032643,-624.7,0.00010994,2]
[335909748,1724583032655,-624.7,0.00010995,2]
[335909749,1724583032665,-624.7,0.00010996,2]
[335909750,1724583032674,-624.7,0.00010996,2]
[335909751,1724583032685,-624.7,0.00010997,2]
[335909752,1724583032695,-624.7,0.00010997,2]
[335909753,1724583032704,-624.7,0.00010998,2]
[335909754,1724583032713,-500.0,0.00010998,2]
[335909755,1724583032723,-577.75,0.00010998,2]
[335909756,1724583032732,-8500.0,0.00010999,2]
[335909757,1724583032742,-624.7,0.00010999,2]
[335909758,1724583032751,-624.7,0.00010999,2]